[Event "8th Amsterdam Summer Open-A 2018"]
[Site "Amsterdam"]
[Date "2018.07.07"]
[Round "1"]
[White "Grooten, Herman"]
[Black "Bogaard, Milo"]
[Result "0-1"]
[ECO "A81"]
[WhiteElo "2384"]
[BlackElo "2073"]
[Annotator "NA"]
[PlyCount "140"]
[EventDate "2018.07.07"]
[EventType "swiss"]
[EventCountry "NED"]
[SourceTitle "playchess.com"]
[Source "ChessBase"]
[SourceQuality "1"]
[TimeControl "40/5400+30:1800+30"]

1. d4 {[%emt 0:00:00]} f5 {[%emt 0:00:00]} 2. g3 {[%emt 0:00:00]} Nf6 {[%emt 0:00:00]} 3. Bg2 {[%emt 0:00:00]} e6 {[%emt 0:00:00]} 4. Nd2 {[%emt 0:01:05]} d5 {[%emt 0:09:28]} 5. Nh3 {[%emt 0:00:21]} Bd6 {[%emt 0:04:25]} 6. c4 {[%emt 0:01:33]} c6 {[%emt 0:00:17]} 7. Qc2 {[%emt 0:03:13]} O-O {[%emt 0:00:50]} 8. Nf3 {[%emt 0:00:28]} Nh5 {[%emt 0:09:25]} 9. O-O {[%emt 0:11:39]} Nd7 {[%emt 0:02:29]} 10. Nhg5 {[%emt 0:03:28]} Ndf6 {[%emt 0:02:57]} 11. Ne5 {[%emt 0:00:52]} Ne4 {[%emt 0:12:18]} 12. Ngf3 {[%emt 0:02:19]} Qe7 {[%emt 0:07:23]} 13. e3 {[%emt 0:05:41]} Nhf6 {[%emt 0:02:24]} 14. Ne1 {[%emt 0:01:05]} Nd7 {[%emt 0:09:57]} 15. f3 {[%emt 0:01:15]} Ng5 {[%emt 0:08:35]} 16. N1d3 {[%emt 0:00:57]} Nxe5 {[%emt 0:05:49]} 17. dxe5 {[%emt 0:00:45]} Bc7 {[%emt 0:00:17]} 18. Bd2 {[%emt 0:00:28]} Rd8 {[%emt 0:04:18]} 19. Rad1 {[%emt 0:08:18]} Bd7 {[%emt 0:06:09]} 20. Qc1 {[%emt 0:01:48]} Nf7 {[%emt 0:01:08]} 21. f4 {[%emt 0:02:21]} Rdc8 {[%emt 0:00:53]} 22. b3 {[%emt 0:02:51]} a5 {[%emt 0:01:11]} 23. c5 {[%emt 0:07:08]} b6 {[%emt 0:03:43]} 24. h3 {[%emt 0:03:25]} g6 {[%emt 0:00:29]} 25. g4 {[%emt 0:00:22]} b5 {[%emt 0:03:39]} 26. Be1 {[%emt 0:02:24]} h6 {[%emt 0:01:10]} 27. Bf3 {[%emt 0:00:36]} Kh7 {[%emt 0:00:13]} 28. Rd2 {[%emt 0:00:31]} Rg8 {[%emt 0:00:09]} 29. Rg2 {[%emt 0:00:16]} Bc8 {[%emt 0:01:07]} 30. a3 {[%emt 0:00:23]} Ba6 {[%emt 0:00:36]} 31. b4 {[%emt 0:00:22]} axb4 {[%emt 0:00:19]} 32. axb4 {[%emt 0:00:17]} Bc8 {[%emt 0:00:21]} 33. Qb1 {[%emt 0:00:38]} Bd7 {[%emt 0:00:22]} 34. Kh1 {[%emt 0:01:00]} Qe8 {[%emt 0:00:29]} 35. Rfg1 {[%emt 0:00:38]} Qe7 {[%emt 0:01:10]} 36. Bd1 {[%emt 0:01:30]} Nh8 {[%emt 0:00:57]} 37. Bf2 {[%emt 0:02:35]} Ra3 {[%emt 0:00:38]} 38. Bb3 {[%emt 0:01:10]} Rga8 {[%emt 0:00:26]} 39. gxf5 {[%emt 0:01:02]} exf5 {[%emt 0:00:10]} 40. Rxg6 {[%emt 0:00:46]} Nxg6 {[%emt 0:00:14]} 41. Qc2 {[%emt 0:30:25]} Ra1 {[%emt 0:31:15]} 42. Ne1 {[%emt 0:00:04]} Qf7 {[%emt 0:02:39]} 43. Nf3 {[%emt 0:04:02]} Rxg1+ {[%emt 0:00:00]} 44. Kxg1 {[%emt 0:00:00]} Bd8 {[%emt 0:00:00]} 45. Qd1 {[%emt 0:00:00]} Be7 {[%emt 0:00:00]} 46. Kh2 {[%emt 0:00:00]} Rg8 {[%emt 0:00:00]} 47. Bc2 {[%emt 0:00:00]} Bd8 {[%emt 0:00:00]} 48. Qe2 {[%emt 0:00:00]} Bc7 {[%emt 0:00:00]} 49. Be1 {[%emt 0:00:00]} Qg7 {[%emt 0:00:00]} 50. Qf2 {[%emt 0:00:00]} Nxe5 {[%emt 0:00:00]} 51. fxe5 {[%emt 0:00:00]} Bxe5+ {[%emt 0:00:00]} 52. Kh1 {[%emt 0:00:00]} Bg3 {[%emt 0:00:00]} 53. Qxg3 {[%emt 0:00:00]} Qxg3 {[%emt 0:00:00]} 54. Bxg3 {[%emt 0:00:00]} Rxg3 {[%emt 0:00:00]} 55. Ne5 {[%emt 0:00:00]} Be8 {[%emt 0:00:00]} 56. Bxf5+ {[%emt 0:00:00]} Kg7 {[%emt 0:00:00]} 57. Ng4 {[%emt 0:00:00]} h5 {[%emt 0:00:00]} 58. Nh2 {[%emt 0:00:00]} Rxe3 {[%emt 0:00:00]} 59. Kg2 {[%emt 0:00:00]} Rb3 {[%emt 0:00:00]} 60. Nf3 {[%emt 0:00:00]} Rxb4 {[%emt 0:00:00]} 61. Ne5 {[%emt 0:00:00]} Kf6 {[%emt 0:00:00]} 62. Nd3 {[%emt 0:00:00]} Rb3 {[%emt 0:01:13]} 63. Bh7 {[%emt 0:00:00]} Bd7 {[%emt 0:00:46]} 64. Nf4 {[%emt 0:00:00]} Kg5 {[%emt 0:00:28]} 65. Ne2 {[%emt 0:00:00]} Bxh3+ {[%emt 0:00:15]} 66. Kf2 {[%emt 0:00:00]} Rb2 {[%emt 0:00:56]} 67. Ke3 {[%emt 0:00:00]} Rxe2+ {[%emt 0:00:38]} 68. Kxe2 {[%emt 0:00:00]} Bf5 {[%emt 0:02:16]} 69. Bg8 {[%emt 0:00:00]} Kf6 {[%emt 0:00:38]} 70. Ke3 {[%emt 0:00:00]} h4 {[%emt 0:00:17]} 0-1

[Event "8th Amsterdam Summer Open-A 2018"]
[Site "Amsterdam"]
[Date "2018.07.07"]
[Round "1"]
[White "De Boer, Eelke"]
[Black "Brouwer, Rein"]
[Result "1-0"]
[ECO "B39"]
[WhiteElo "2317"]
[BlackElo "2062"]
[Annotator "NA"]
[PlyCount "75"]
[EventDate "2018.07.07"]
[EventType "swiss"]
[EventCountry "NED"]
[SourceTitle "playchess.com"]
[Source "ChessBase"]
[SourceQuality "1"]
[TimeControl "40/5400+30:1800+30"]

1. e4 {[%emt 0:00:00]} c5 {[%emt 0:00:00]} 2. Nf3 {[%emt 0:00:00]} Nc6 {[%emt 0:00:00]} 3. d4 {[%emt 0:00:00]} cxd4 {[%emt 0:00:03]} 4. Nxd4 {[%emt 0:00:00]} g6 {[%emt 0:00:09]} 5. c4 {[%emt 0:00:12]} Bg7 {[%emt 0:00:16]} 6. Be3 {[%emt 0:00:09]} Nf6 {[%emt 0:00:16]} 7. Nc3 {[%emt 0:00:07]} Ng4 {[%emt 0:00:28]} 8. Qxg4 {[%emt 0:00:09]} Nxd4 {[%emt 0:00:06]} 9. Qd1 {[%emt 0:00:08]} Ne6 {[%emt 0:04:48]} 10. Rc1 {[%emt 0:06:22]} Qa5 {[%emt 0:01:06]} 11. Be2 {[%emt 0:00:07]} O-O {[%emt 0:01:03]} 12. O-O {[%emt 0:01:16]} d6 {[%emt 0:02:09]} 13. Qd2 {[%emt 0:01:35]} b6 {[%emt 0:02:39]} 14. Qd5 {[%emt 0:07:16]} Qxd5 {[%emt 0:36:24]} 15. cxd5 {[%emt 0:00:16]} Bxc3 {[%emt 0:01:10]} 16. Rxc3 {[%emt 0:00:10]} Nc5 {[%emt 0:00:09]} 17. f3 {[%emt 0:00:58]} a5 {[%emt 0:02:03]} 18. Rfc1 {[%emt 0:15:54]} Ba6 {[%emt 0:04:56]} 19. Bxa6 {[%emt 0:03:02]} Rxa6 {[%emt 0:00:05]} 20. b3 {[%emt 0:09:38]} f5 {[%emt 0:09:27]} 21. Bh6 {[%emt 0:01:44]} Re8 {[%emt 0:01:10]} 22. Re1 {[%emt 0:04:48]} e5 {[%emt 0:11:57]} 23. a3 {[%emt 0:03:06]} Ra7 {[%emt 0:04:04]} 24. b4 {[%emt 0:00:54]} axb4 {[%emt 0:00:07]} 25. axb4 {[%emt 0:00:09]} Na4 {[%emt 0:00:24]} 26. Rc6 {[%emt 0:01:13]} Rd7 {[%emt 0:03:40]} 27. Rec1 {[%emt 0:01:53]} b5 {[%emt 0:03:57]} 28. R1c2 {[%emt 0:02:48]} Kf7 {[%emt 0:06:05]} 29. g4 {[%emt 0:03:23]} fxg4 {[%emt 0:01:27]} 30. fxg4 {[%emt 0:00:07]} g5 {[%emt 0:00:07]} 31. Bxg5 {[%emt 0:01:49]} Kg6 {[%emt 0:00:02]} 32. Be3 {[%emt 0:01:55]} Rf8 {[%emt 0:01:05]} 33. Kg2 {[%emt 0:00:30]} h6 {[%emt 0:00:31]} 34. h4 {[%emt 0:00:59]} h5 {[%emt 0:02:07]} 35. g5 {[%emt 0:01:17]} Rff7 {[%emt 0:01:38]} 36. Ra6 {[%emt 0:01:39]} Rf8 {[%emt 0:00:59]} 37. Rcc6 {[%emt 0:00:13]} Rfd8 {[%emt 0:00:07]} 38. Bc5 {[%emt 0:01:12]} 1-0

[Event "8th Amsterdam Summer Open-A 2018"]
[Site "Amsterdam"]
[Date "2018.07.07"]
[Round "1"]
[White "Elgersma, Simon"]
[Black "Spiler, Angelo"]
[Result "1/2-1/2"]
[ECO "B75"]
[WhiteElo "2263"]
[BlackElo "2049"]
[Annotator "NA"]
[PlyCount "126"]
[EventDate "2018.07.07"]
[EventType "swiss"]
[EventCountry "NED"]
[SourceTitle "playchess.com"]
[Source "ChessBase"]
[SourceQuality "1"]
[TimeControl "40/5400+30:1800+30"]

1. e4 {[%emt 0:00:00]} c5 {[%emt 0:00:00]} 2. Nf3 {[%emt 0:00:00]} d6 {[%emt 0:00:00]} 3. d4 {[%emt 0:00:00]} Nf6 {[%emt 0:00:15]} 4. Nc3 {[%emt 0:00:36]} cxd4 {[%emt 0:00:05]} 5. Nxd4 {[%emt 0:00:07]} g6 {[%emt 0:00:12]} 6. Be3 {[%emt 0:00:07]} Bg7 {[%emt 0:00:08]} 7. f3 {[%emt 0:00:15]} Nc6 {[%emt 0:00:16]} 8. Qd2 {[%emt 0:00:08]} Bd7 {[%emt 0:01:22]} 9. O-O-O {[%emt 0:01:32]} Rc8 {[%emt 0:00:36]} 10. Kb1 {[%emt 0:12:01]} a6 {[%emt 0:04:54]} 11. g4 {[%emt 0:02:33]} h5 {[%emt 0:03:46]} 12. g5 {[%emt 0:02:42]} Nh7 {[%emt 0:00:08]} 13. h4 {[%emt 0:03:10]} O-O {[%emt 0:04:59]} 14. f4 {[%emt 0:12:48]} Bg4 {[%emt 0:05:34]} 15. Be2 {[%emt 0:09:40]} Bxe2 {[%emt 0:14:08]} 16. Ncxe2 {[%emt 0:20:12]} Qc7 {[%emt 0:05:38]} 17. f5 {[%emt 0:03:00]} Nxd4 {[%emt 0:23:28]} 18. Nxd4 {[%emt 0:05:40]} Qc4 {[%emt 0:01:21]} 19. Rhf1 {[%emt 0:03:16]} Be5 {[%emt 0:01:54]} 20. b3 {[%emt 0:04:34]} Qc3 {[%emt 0:01:40]} 21. Qe2 {[%emt 0:00:15]} a5 {[%emt 0:08:41]} 22. Rd3 {[%emt 0:02:00]} Qb4 {[%emt 0:00:20]} 23. Qd2 {[%emt 0:07:38]} Qxd2 {[%emt 0:07:49]} 24. Bxd2 {[%emt 0:00:02]} a4 {[%emt 0:00:41]} 25. Nf3 {[%emt 0:02:06]} Bg7 {[%emt 0:02:27]} 26. Bb4 {[%emt 0:00:34]} Rc6 {[%emt 0:02:12]} 27. Rfd1 {[%emt 0:01:11]} Rfc8 {[%emt 0:00:47]} 28. R1d2 {[%emt 0:04:01]} Bc3 {[%emt 0:02:01]} 29. Bxc3 {[%emt 0:00:34]} Rxc3 {[%emt 0:00:28]} 30. Kb2 {[%emt 0:01:43]} a3+ {[%emt 0:01:49]} 31. Kxa3 {[%emt 0:00:18]} Rxc2 {[%emt 0:00:11]} 32. Kb4 {[%emt 0:00:17]} Nf8 {[%emt 0:01:37]} 33. a4 {[%emt 0:01:46]} Nd7 {[%emt 0:02:29]} 34. Rxc2 {[%emt 0:00:57]} Rxc2 {[%emt 0:00:16]} 35. f6 {[%emt 0:00:38]} Nc5 {[%emt 0:01:15]} 36. Rd4 {[%emt 0:00:39]} exf6 {[%emt 0:01:15]} 37. gxf6 {[%emt 0:00:13]} Rf2 {[%emt 0:00:56]} 38. Ng5 {[%emt 0:01:14]} Rxf6 {[%emt 0:00:22]} 39. e5 {[%emt 0:00:30]} Na6+ {[%emt 0:00:27]} 40. Kb5 {[%emt 0:00:01]} dxe5 {[%emt 0:01:05]} 41. Rd8+ {[%emt 0:02:16]} Kg7 {[%emt 0:00:44]} 42. Rd7 {[%emt 0:00:13]} Nb8 {[%emt 0:02:46]} 43. Rxb7 {[%emt 0:04:45]} Nc6 {[%emt 0:00:28]} 44. a5 {[%emt 0:04:43]} Nd4+ {[%emt 0:03:23]} 45. Kc5 {[%emt 0:04:59]} Ne6+ {[%emt 0:05:53]} 46. Nxe6+ {[%emt 0:00:53]} Rxe6 {[%emt 0:00:02]} 47. Rb6 {[%emt 0:00:39]} Re8 {[%emt 0:01:05]} 48. a6 {[%emt 0:02:18]} e4 {[%emt 0:02:33]} 49. a7 {[%emt 0:06:15]} e3 {[%emt 0:07:16]} 50. Rb8 {[%emt 0:01:54]} Re5+ {[%emt 0:00:31]} 51. Kd4 {[%emt 0:04:46]} e2 {[%emt 0:01:33]} 52. a8=Q {[%emt 0:01:32]} e1=Q {[%emt 0:00:42]} 53. Rg8+ {[%emt 0:00:14]} Kh7 {[%emt 0:04:42]} 54. Rh8+ {[%emt 0:00:06]} Kg7 {[%emt 0:00:01]} 55. Rg8+ {[%emt 0:00:05]} Kh7 {[%emt 0:00:10]} 56. Rh8+ {[%emt 0:00:08]} Kg7 {[%emt 0:00:02]} 57. Rg8+ {[%emt 0:01:28]} Kf6 {[%emt 0:00:41]} 58. Qd8+ {[%emt 0:00:05]} Re7 {[%emt 0:00:04]} 59. Qd6+ {[%emt 0:00:02]} Qe6 {[%emt 0:00:12]} 60. Qf4+ {[%emt 0:00:08]} Qf5 {[%emt 0:00:01]} 61. Qd6+ {[%emt 0:00:02]} Qe6 {[%emt 0:00:03]} 62. Qb8 Qe1 63. Qd6+ {[%emt 0:00:08] Re5 Qb8} Re6 {[%emt 0:00:03] Qa8 [%emt 00:00:04]} 1/2-1/2

[Event "8th Amsterdam Summer Open-A 2018"]
[Site "Amsterdam"]
[Date "2018.07.07"]
[Round "1"]
[White "Kokje, Joris"]
[Black "Hernandez Iglesias, Francisco"]
[Result "0-1"]
[ECO "D11"]
[WhiteElo "2242"]
[BlackElo "2047"]
[Annotator "NA"]
[PlyCount "64"]
[EventDate "2018.07.07"]
[EventType "swiss"]
[EventCountry "NED"]
[SourceTitle "playchess.com"]
[Source "ChessBase"]
[SourceQuality "1"]
[TimeControl "40/5400+30:1800+30"]

1. d4 {[%emt 0:00:00]} d5 {[%emt 0:00:00]} 2. c4 {[%emt 0:00:00]} c6 {[%emt 0:00:00]} 3. Nf3 {[%emt 0:00:00]} Nf6 {[%emt 0:00:00]} 4. g3 {[%emt 0:00:00]} Bf5 {[%emt 0:02:02]} 5. Nc3 {[%emt 0:00:59]} e6 {[%emt 0:00:33]} 6. Nh4 {[%emt 0:00:10]} Bg4 {[%emt 0:01:06]} 7. h3 {[%emt 0:00:31]} Bh5 {[%emt 0:01:40]} 8. g4 {[%emt 0:00:07]} Ne4 {[%emt 0:02:37]} 9. Nxe4 {[%emt 0:03:14]} Qxh4 {[%emt 0:01:29]} 10. Bg5 {[%emt 0:00:18]} Bb4+ {[%emt 0:00:11]} 11. Bd2 {[%emt 0:01:48]} dxe4 {[%emt 0:00:25]} 12. Bxb4 {[%emt 0:01:07]} e3 {[%emt 0:01:12]} 13. Rh2 {[%emt 0:11:35]} Bxg4 {[%emt 0:01:09]} 14. Qb3 {[%emt 0:01:46]} exf2+ {[%emt 0:02:06]} 15. Rxf2 {[%emt 0:00:41]} Bf5 {[%emt 0:01:31]} 16. Bd6 {[%emt 0:05:06]} Qd8 {[%emt 0:14:17]} 17. Qxb7 {[%emt 0:20:46]} Qxd6 {[%emt 0:00:10]} 18. O-O-O {[%emt 0:00:40]} O-O {[%emt 0:01:29]} 19. Qxa8 {[%emt 0:00:53]} Qc7 {[%emt 0:10:18]} 20. Bg2 {[%emt 0:09:07]} Bg6 {[%emt 0:03:27]} 21. Bf3 {[%emt 0:07:44]} Rc8 {[%emt 0:03:55]} 22. e3 {[%emt 0:03:13]} f6 {[%emt 0:00:46]} 23. b3 {[%emt 0:04:28]} Be8 {[%emt 0:01:08]} 24. d5 {[%emt 0:00:45]} cxd5 {[%emt 0:05:03]} 25. Bxd5 {[%emt 0:00:13]} Bc6 {[%emt 0:04:00]} 26. Bxe6+ {[%emt 0:00:43]} Kf8 {[%emt 0:01:11]} 27. Bxc8 {[%emt 0:01:51]} Bxa8 {[%emt 0:00:11]} 28. Rfd2 {[%emt 0:00:29]} Be4 {[%emt 0:01:03]} 29. Rd4 {[%emt 0:02:54]} Qe5 {[%emt 0:02:55]} 30. Rd8+ {[%emt 0:03:06]} Kf7 {[%emt 0:00:29]} 31. Kd2 {[%emt 0:02:34]} Bf3 {[%emt 0:00:51]} 32. Rc1 {[%emt 0:01:25]} Qa5+ {[%emt 0:00:10]} 0-1

[Event "8th Amsterdam Summer Open-A 2018"]
[Site "Amsterdam"]
[Date "2018.07.07"]
[Round "1"]
[White "Floor, Dirk"]
[Black "Bodicker, Rob"]
[Result "1-0"]
[ECO "C09"]
[WhiteElo "2196"]
[BlackElo "2039"]
[Annotator "NA"]
[PlyCount "71"]
[EventDate "2018.07.07"]
[EventType "swiss"]
[EventCountry "NED"]
[SourceTitle "playchess.com"]
[Source "ChessBase"]
[SourceQuality "1"]
[TimeControl "40/5400+30:1800+30"]

1. e4 {[%emt 0:00:00]} e6 {[%emt 0:00:00]} 2. d4 {[%emt 0:00:00]} d5 {[%emt 0:00:00]} 3. Nd2 {[%emt 0:01:21]} c5 {[%emt 0:00:00]} 4. Ngf3 {[%emt 0:01:04]} cxd4 {[%emt 0:01:30]} 5. exd5 {[%emt 0:00:28]} exd5 {[%emt 0:02:00]} 6. Bb5+ {[%emt 0:09:08]} Nc6 {[%emt 0:01:14]} 7. Qe2+ {[%emt 0:08:35]} Be7 {[%emt 0:07:56]} 8. O-O {[%emt 0:04:05]} a6 {[%emt 0:08:51]} 9. Bxc6+ {[%emt 0:01:35]} bxc6 {[%emt 0:01:47]} 10. Re1 {[%emt 0:05:34]} Qb6 {[%emt 0:08:09]} 11. c4 {[%emt 0:15:26]} Be6 {[%emt 0:09:20]} 12. cxd5 {[%emt 0:06:15]} cxd5 {[%emt 0:00:17]} 13. Nb3 {[%emt 0:01:42]} Bb4 {[%emt 0:11:35]} 14. Bd2 {[%emt 0:01:28]} Bxd2 {[%emt 0:00:14]} 15. Qxd2 {[%emt 0:00:21]} Nf6 {[%emt 0:00:15]} 16. Qxd4 {[%emt 0:01:00]} Rb8 {[%emt 0:08:09]} 17. Qa4+ {[%emt 0:01:50]} Qb5 {[%emt 0:02:08]} 18. Qa3 {[%emt 0:05:54]} Qb4 {[%emt 0:04:36]} 19. Qxa6 {[%emt 0:00:53]} O-O {[%emt 0:00:22]} 20. Qd3 {[%emt 0:01:39]} Ne4 {[%emt 0:03:18]} 21. Qd4 {[%emt 0:00:37]} Qb5 {[%emt 0:04:25]} 22. Qe3 {[%emt 0:00:44]} Rbc8 {[%emt 0:02:12]} 23. Nfd4 {[%emt 0:00:40]} Qb6 {[%emt 0:02:02]} 24. Nxe6 {[%emt 0:06:57]} Qxe3 {[%emt 0:00:55]} 25. Rxe3 {[%emt 0:00:12]} fxe6 {[%emt 0:00:04]} 26. f3 {[%emt 0:00:15]} Nf6 {[%emt 0:00:58]} 27. Nd4 {[%emt 0:00:21]} Rc4 {[%emt 0:03:29]} 28. Rd1 {[%emt 0:00:38]} Rfc8 {[%emt 0:00:29]} 29. Rxe6 {[%emt 0:00:38]} Kf7 {[%emt 0:00:26]} 30. Re5 {[%emt 0:00:55]} Rb4 {[%emt 0:01:43]} 31. b3 {[%emt 0:01:19]} Rc5 {[%emt 0:00:42]} 32. Kf2 {[%emt 0:02:15]} Nd7 {[%emt 0:00:50]} 33. Re2 {[%emt 0:00:19]} Rb6 {[%emt 0:00:55]} 34. Rc2 {[%emt 0:00:58]} Ra6 {[%emt 0:01:23]} 35. Rxc5 {[%emt 0:00:26]} Nxc5 {[%emt 0:00:01]} 36. Rd2 {[%emt 0:00:24]} 1-0

[Event "8th Amsterdam Summer Open-A 2018"]
[Site "Amsterdam"]
[Date "2018.07.07"]
[Round "1"]
[White "Jansen, Dirk Norbert"]
[Black "Riemersma, Li"]
[Result "0-1"]
[ECO "C44"]
[WhiteElo "2190"]
[BlackElo "2458"]
[Annotator "ChessBase"]
[PlyCount "86"]
[EventDate "2018.07.07"]
[EventType "swiss"]
[EventCountry "NED"]
[SourceTitle "playchess.com"]
[Source "ChessBase"]
[SourceQuality "1"]
[TimeControl "40/5400+30:1800+30"]

1. e4 {[%emt 0:00:00]} e5 {[%emt 0:00:00]} 2. Nf3 {[%emt 0:00:00]} Nc6 {[%emt 0:00:00]} 3. d4 {[%emt 0:00:00]} exd4 {[%emt 0:00:00]} 4. c3 {[%emt 0:00:04]} Nf6 {[%emt 0:13:00]} 5. e5 {[%emt 0:04:16]} Nd5 {[%emt 0:00:04]} 6. cxd4 {[%emt 0:04:36]} d6 {[%emt 0:01:06]} 7. Bb5 {[%emt 0:03:22]} Be7 {[%emt 0:03:40]} 8. Nc3 {[%emt 0:01:26]} Nxc3 {[%emt 0:07:59]} 9. bxc3 {[%emt 0:00:10]} O-O {[%emt 0:00:07]} 10. O-O {[%emt 0:04:45]} Bg4 {[%emt 0:02:23]} 11. h3 {[%emt 0:03:22]} Bh5 {[%emt 0:01:35]} 12. Bf4 {[%emt 0:10:37]} dxe5 {[%emt 0:02:48]} 13. dxe5 {[%emt 0:00:07]} Bc5 {[%emt 0:14:09]} 14. Qxd8 {[%emt 0:16:29]} Raxd8 {[%emt 0:07:23]} 15. Rad1 {[%emt 0:00:31]} Ne7 {[%emt 0:02:49]} 16. Bc4 {[%emt 0:17:20]} c6 {[%emt 0:03:48]} 17. g4 {[%emt 0:05:10]} Bg6 {[%emt 0:00:02]} 18. Nd4 {[%emt 0:01:01]} Nd5 {[%emt 0:05:41]} 19. Bd2 {[%emt 0:17:37]} Rfe8 {[%emt 0:00:36]} 20. f4 {[%emt 0:01:55]} Bc2 {[%emt 0:00:33]} 21. Rc1 {[%emt 0:00:18]} Be4 {[%emt 0:00:18]} 22. Rfe1 {[%emt 0:02:51]} Nxc3 {[%emt 0:01:12]} 23. Bxc3 {[%emt 0:01:01]} Bxd4+ {[%emt 0:00:07]} 24. Bxd4 {[%emt 0:00:32]} Rxd4 {[%emt 0:00:04]} 25. Kf2 {[%emt 0:00:04]} Bd5 {[%emt 0:02:51]} 26. Bxd5 {[%emt 0:00:08]} Rxd5 {[%emt 0:00:01]} 27. Red1 {[%emt 0:00:23]} Red8 {[%emt 0:00:35]} 28. Rxd5 {[%emt 0:00:07]} Rxd5 {[%emt 0:00:03]} 29. Ke3 {[%emt 0:00:37]} Kf8 {[%emt 0:01:11]} 30. Ke4 {[%emt 0:00:41]} Ra5 {[%emt 0:01:39]} 31. Rc2 {[%emt 0:01:35]} Ke7 {[%emt 0:00:07]} 32. h4 {[%emt 0:00:46]} Ra4+ {[%emt 0:00:30]} 33. Kf3 {[%emt 0:00:33]} g6 {[%emt 0:02:16]} 34. h5 {[%emt 0:02:58]} gxh5 {[%emt 0:10:17]} 35. gxh5 {[%emt 0:00:02]} Ra3+ {[%emt 0:02:56]} 36. Kg4 {[%emt 0:00:14]} h6 {[%emt 0:02:12]} 37. Rb2 {[%emt 0:00:07]} b5 {[%emt 0:07:47]} 38. Rd2 {[%emt 0:01:03]} b4 {[%emt 0:05:14]} 39. Rd6 {[%emt 0:00:26]} Rxa2 {[%emt 0:00:14]} 40. Rxh6 {[%emt 0:01:11]} Rc2 {[%emt 0:01:56]} 41. Rh8 {[%emt 0:01:48]} a5 {[%emt 0:00:30]} 42. Ra8 {[%emt 0:00:58]} b3 {[%emt 0:04:30]} 43. Rxa5 {[%emt 0:01:16]} Ra2 {[%emt 0:00:12]} 0-1

[Event "8th Amsterdam Summer Open-A 2018"]
[Site "Amsterdam"]
[Date "2018.07.07"]
[Round "1"]
[White "Elgersma, Onno"]
[Black "Hoekstra, Peter"]
[Result "1-0"]
[ECO "C19"]
[WhiteElo "2150"]
[BlackElo "2031"]
[Annotator "NA"]
[PlyCount "125"]
[EventDate "2018.07.07"]
[EventType "swiss"]
[EventCountry "NED"]
[SourceTitle "playchess.com"]
[Source "ChessBase"]
[SourceQuality "1"]
[TimeControl "40/5400+30:1800+30"]

1. e4 {[%emt 0:00:00]} e6 {[%emt 0:00:00]} 2. d4 {[%emt 0:00:00]} d5 {[%emt 0:00:00]} 3. Nc3 {[%emt 0:00:18]} Bb4 {[%emt 0:00:00]} 4. e5 {[%emt 0:00:25]} c5 {[%emt 0:00:03]} 5. a3 {[%emt 0:00:06]} Bxc3+ {[%emt 0:00:06]} 6. bxc3 {[%emt 0:00:05]} Ne7 {[%emt 0:00:16]} 7. Nf3 {[%emt 0:00:46]} h6 {[%emt 0:00:41]} 8. h4 {[%emt 0:05:05]} O-O {[%emt 0:09:31]} 9. Bd3 {[%emt 0:04:17]} b6 {[%emt 0:01:01]} 10. h5 {[%emt 0:14:04]} Ba6 {[%emt 0:02:50]} 11. g4 {[%emt 0:08:33]} Bxd3 {[%emt 0:05:53]} 12. cxd3 {[%emt 0:01:23]} Nd7 {[%emt 0:00:30]} 13. Rg1 {[%emt 0:06:08]} Kh8 {[%emt 0:04:07]} 14. Be3 {[%emt 0:06:58]} cxd4 {[%emt 0:07:13]} 15. cxd4 {[%emt 0:01:09]} Rc8 {[%emt 0:03:06]} 16. Qd2 {[%emt 0:02:15]} Kh7 {[%emt 0:02:19]} 17. g5 {[%emt 0:08:44]} Nf5 {[%emt 0:00:41]} 18. gxh6 {[%emt 0:00:24]} gxh6 {[%emt 0:00:41]} 19. Bxh6 {[%emt 0:00:51]} Rg8 {[%emt 0:09:40]} 20. Bg5 {[%emt 0:25:30]} Qc7 {[%emt 0:06:11]} 21. Ke2 {[%emt 0:01:04]} Qc2 {[%emt 0:14:10]} 22. Bf4 {[%emt 0:02:01]} Qxd2+ {[%emt 0:01:29]} 23. Kxd2 {[%emt 0:00:35]} Rxg1 {[%emt 0:01:08]} 24. Rxg1 {[%emt 0:00:03]} Kh8 {[%emt 0:00:35]} 25. a4 {[%emt 0:04:39]} Nb8 {[%emt 0:01:01]} 26. Bg5 {[%emt 0:00:14]} Nd7 {[%emt 0:00:59]} 27. Rg4 {[%emt 0:01:09]} Rg8 {[%emt 0:01:13]} 28. Kc3 {[%emt 0:00:33]} Kh7 {[%emt 0:01:52]} 29. Kb4 {[%emt 0:00:56]} a6 {[%emt 0:01:26]} 30. Rg1 {[%emt 0:01:05]} Nb8 {[%emt 0:00:54]} 31. Rc1 {[%emt 0:03:43]} Nxd4 {[%emt 0:00:58]} 32. Nxd4 {[%emt 0:00:07]} Rxg5 {[%emt 0:00:06]} 33. Rc7 {[%emt 0:00:17]} Rg7 {[%emt 0:09:57]} 34. Rb7 {[%emt 0:00:23]} Rg8 {[%emt 0:00:07]} 35. Rxf7+ {[%emt 0:01:03]} Kh6 {[%emt 0:00:11]} 36. Rf6+ {[%emt 0:00:38]} Kxh5 {[%emt 0:00:08]} 37. Rxe6 {[%emt 0:00:06]} Nd7 {[%emt 0:00:20]} 38. f4 {[%emt 0:02:29]} Rg4 {[%emt 0:01:49]} 39. Ne2 {[%emt 0:00:44]} Nc5 {[%emt 0:00:20]} 40. Rxb6 {[%emt 0:00:32]} Nxd3+ {[%emt 0:00:06]} 41. Kb3 {[%emt 0:30:37]} Nxf4 {[%emt 0:41:17]} 42. Nxf4+ {[%emt 0:00:00]} Rxf4 {[%emt 0:00:00]} 43. Rxa6 {[%emt 0:00:00]} Re4 {[%emt 0:00:00]} 44. e6 {[%emt 0:00:00]} Kg6 {[%emt 0:00:00]} 45. a5 {[%emt 0:00:00]} Kf6 {[%emt 0:00:00]} 46. Rc6 {[%emt 0:00:00]} Re1 {[%emt 0:00:00]} 47. Ra6 {[%emt 0:00:00]} Re4 {[%emt 0:00:00]} 48. Rc6 {[%emt 0:00:00]} Re1 {[%emt 0:00:00]} 49. a6 {[%emt 0:00:00]} Ra1 {[%emt 0:00:00]} 50. Kc2 {[%emt 0:00:00]} Ra3 {[%emt 0:00:00]} 51. Kb2 {[%emt 0:00:13]} Ra4 {[%emt 0:00:00]} 52. Kc3 {[%emt 0:00:15]} Ke7 {[%emt 0:00:00]} 53. Kb3 {[%emt 0:02:17]} Ra1 {[%emt 0:00:00]} 54. Kb4 {[%emt 0:00:31]} Ra2 {[%emt 0:00:00]} 55. Kc5 {[%emt 0:00:21]} Ra5+ {[%emt 0:00:00]} 56. Kd4 {[%emt 0:02:28]} Kf6 {[%emt 0:00:00]} 57. Rb6 {[%emt 0:00:23]} Ke7 {[%emt 0:02:37]} 58. Ke5 {[%emt 0:00:06]} d4+ {[%emt 0:00:05]} 59. Kxd4 {[%emt 0:00:05]} Kf6 {[%emt 0:00:14]} 60. Kc4 {[%emt 0:00:17]} Ke7 {[%emt 0:01:03]} 61. Kb4 {[%emt 0:00:17]} Ra1 {[%emt 0:00:11]} 62. Kb5 {[%emt 0:00:12]} Ra2 {[%emt 0:00:30]} 63. Kc6 {[%emt 0:00:27]} 1-0